fUSD/lending_fUSD_20240426
["ID","MTS","AMOUNT","RATE_DAILY","PERIOD"]
[323656081,1714149052228,-500.0,0.00011812,2]
[323656082,1714149052238,-500.0,0.00011812,2]
[323656083,1714149052248,-500.0,0.00011812,2]
[323656084,1714149052258,-500.0,0.00011812,2]
[323656085,1714149052268,-1210.85,0.00011812,2]
[323656086,1714149052278,-500.0,0.00011812,2]
[323656087,1714149052288,-500.0,0.00011812,2]
[323656088,1714149052299,-616.79,0.00011812,2]
[323656089,1714149052309,-500.0,0.00011812,2]
[323656090,1714149052319,-500.0,0.00011812,2]
[323656091,1714149052330,-500.0,0.00011812,2]
[323656092,1714149052340,-500.0,0.00011812,2]
[323656093,1714149052349,-500.0,0.00011812,2]
[323656094,1714149052360,-500.0,0.00011812,2]
[323656095,1714149052370,-500.0,0.00011812,2]
[323656096,1714149052381,-1046.89,0.00011812,2]
[323656097,1714149052391,-500.0,0.00011812,2]
[323656098,1714149052401,-500.0,0.00011812,2]
[323656099,1714149052411,-500.0,0.00011812,2]
[323656100,1714149052421,-500.0,0.00011812,2]
[323656101,1714149052431,-500.0,0.00011812,2]
[323656102,1714149052440,-1662.26,0.00011812,2]
[323656103,1714149052450,-1614.92,0.00011812,2]
[323656104,1714149052460,-500.0,0.00011812,2]
[323656105,1714149052470,-500.0,0.00011812,2]
[323656106,1714149052479,-500.0,0.00011812,2]
[323656107,1714149052489,-500.0,0.00011812,2]
[323656108,1714149052499,-540.35,0.00011812,2]
[323656109,1714149052509,-1901.7,0.00011812,2]
[323656110,1714149052519,-500.0,0.00011812,2]
[323656111,1714149052529,-500.0,0.00011812,2]
[323656112,1714149052538,-500.0,0.00011812,2]
[323656113,1714149052548,-500.0,0.00011812,2]
[323656114,1714149052559,-599.77,0.00011812,2]
[323656115,1714149052571,-396.38,0.00011812,2]
[323656116,1714149052581,-500.0,0.00011812,2]
[323656117,1714149052591,-500.0,0.00011812,2]
[323656118,1714149052601,-500.0,0.00011812,2]
[323656119,1714149052610,-550.39,0.00011812,2]
[323656120,1714149052620,-500.0,0.00011812,2]
[323656121,1714149052631,-662.42,0.00011812,2]
[323656122,1714149052640,-1748.51,0.00011812,2]
[323656123,1714149052650,-500.0,0.00011812,2]
[323656124,1714149052660,-623.8,0.00011812,2]
[323656125,1714149052670,-500.0,0.00011812,2]
[323656126,1714149052680,-500.0,0.00011812,2]
[323656127,1714149052689,-500.0,0.00011812,2]
[323656128,1714149052699,-588.46559191,0.00011812,2]
[323656129,1714149052709,-500.0,0.00011812,2]
[323656130,1714149052719,-529.75,0.00011812,2]
[323656131,1714149052729,-2131.48,0.00011812,2]
[323656132,1714149052739,-500.0,0.00011812,2]
[323656133,1714149052749,-500.0,0.00011812,2]
[323656134,1714149052759,-1276.19,0.00011812,2]
[323656135,1714149052769,-1531.16,0.00011812,2]
[323656136,1714149052778,-500.0,0.00011812,2]
[323656137,1714149052788,-1269.59,0.00011812,2]
[323656138,1714149052798,-500.0,0.00011812,2]
[323656139,1714149052809,-500.0,0.00011812,2]
[323656140,1714149052818,-4251.17,0.00011812,2]
[323656141,1714149052828,-500.0,0.00011812,2]
[323656142,1714149052838,-500.0,0.00011812,2]
[323656143,1714149052848,-4257.92,0.00011812,2]
[323656144,1714149052858,-651.9,0.00011812,2]
[323656145,1714149052867,-500.0,0.00011812,2]
[323656146,1714149052877,-11294.83,0.00011812,2]
[323656147,1714149052887,-10697.7,0.00011812,2]
[323656148,1714149052897,-1273.7,0.00011812,2]
[323656149,1714149052907,-8953.63,0.00011812,2]
[323656150,1714149052917,-1159.49,0.00011812,2]
[323656151,1714149052926,-690.73,0.00011812,2]
[323656152,1714149052936,-1691.65,0.00011812,2]
[323656153,1714149052946,-3003.83,0.00011812,2]
[323656154,1714149052955,-500.0,0.00011812,2]
[323656155,1714149052965,-500.0,0.00011812,2]
[323656156,1714149052975,-7101.95,0.00011812,2]
[323656157,1714149052984,-1555.56,0.00011812,2]
[323656158,1714149052994,-4530.65,0.00011812,2]
[323656159,1714149053004,-4768.14,0.00011812,2]
[323656160,1714149053014,-500.0,0.00011812,2]
[323656161,1714149053023,-2093.19,0.00011812,2]
[323656162,1714149053033,-500.0,0.00011812,2]
[323656163,1714149053043,-926.04,0.00011812,2]
[323656164,1714149053052,-3870.0,0.00011812,2]
[323656165,1714149053062,-1291.96,0.00011812,2]
[323656166,1714149053072,-8548.33,0.00011812,2]
[323656167,1714149053082,-500.0,0.00011812,2]
[323656168,1714149053092,-1681.81,0.00011812,2]
[323656169,1714149053102,-500.0,0.00011812,2]
[323656170,1714149053111,-4033.69,0.00011812,2]
[323656171,1714149053121,-510.22316274,0.00011812,2]
[323656172,1714149053130,-500.0,0.00011812,2]
[323656173,1714149053140,-500.0,0.00011812,2]
[323656174,1714149053150,-2496.7,0.00011812,2]
[323656175,1714149053159,-1556.69,0.00011812,2]
[323656176,1714149053169,-11394.29,0.00011812,2]
[323656177,1714149053179,-500.0,0.00011812,2]
[323656178,1714149053189,-1843.36,0.00011812,2]
[323656179,1714149053199,-500.0,0.00011812,2]
[323656180,1714149053209,-506.07,0.00011812,2]
[323656181,1714149053219,-500.0,0.00011812,2]
[323656182,1714149053229,-1389.23,0.00011812,2]
[323656183,1714149053239,-500.0,0.00011812,2]
[323656184,1714149053249,-1518.43,0.00011812,2]
[323656185,1714149053259,-2729.76,0.00011812,2]
[323656186,1714149053269,-4703.85,0.00011812,2]
[323656187,1714149053279,-500.0,0.00011812,2]
[323656188,1714149053291,-500.0,0.00011812,2]
[323656189,1714149053304,-500.0,0.00011812,2]
[323656190,1714149053314,-1279.26,0.00011812,2]
[323656191,1714149053324,-3034.77,0.00011812,2]
[323656192,1714149053334,-500.0,0.00011812,2]
[323656193,1714149053344,-969.04,0.00011812,2]
[323656194,1714149053354,-528.56170593,0.00011812,2]
[323656195,1714149053364,-500.0,0.00011812,2]
[323656196,1714149053373,-1759.99,0.00011812,2]
[323656197,1714149053384,-1412.85,0.00011812,2]
[323656198,1714149053395,-573.44,0.00011812,2]
[323656199,1714149053645,-966.37,0.00011812,2]
[323656200,1714149053654,-2072.39,0.00011812,2]
[323656201,1714149053663,-500.0,0.00011812,2]
[323656202,1714149053673,-1812.94,0.00011812,2]
[323656203,1714149053682,-2203.74,0.00011812,2]
[323656204,1714149053691,-1927.61,0.00011812,2]
[323656205,1714149053701,-500.0,0.00011812,2]
[323656206,1714149053710,-500.0,0.00011812,2]
[323656207,1714149053720,-2371.03,0.00011812,2]
[323656208,1714149053729,-729.64,0.00011812,2]
[323656209,1714149053739,-1215.65,0.00011812,2]
[323656210,1714149053749,-3099.52,0.00011812,2]
[323656211,1714149053758,-2129.57,0.00011812,2]
[323656212,1714149053767,-1060.07,0.00011812,2]
[323656213,1714149053777,-705.27,0.00011812,2]
[323656214,1714149053786,-3133.69,0.00011812,2]
[323656215,1714149053795,-739.6,0.00011812,2]
[323656216,1714149053805,-500.0,0.00011812,2]
[323656217,1714149053815,-500.0,0.00011812,2]
[323656218,1714149053824,-1075.86,0.00011812,2]
[323656219,1714149053834,-2025.92,0.00011812,2]
[323656220,1714149053843,-500.0,0.00011812,2]
[323656221,1714149053852,-500.0,0.00011812,2]
[323656222,1714149053861,-500.0,0.00011812,2]
[323656223,1714149053871,-500.0,0.00011812,2]
[323656224,1714149053881,-2207.6,0.00011812,2]
[323656225,1714149053890,-500.0,0.00011812,2]
[323656226,1714149053899,-500.0,0.00011812,2]
[323656227,1714149053909,-1550.86,0.00011812,2]
[323656228,1714149053919,-500.0,0.00011812,2]
[323656229,1714149053928,-4090.88,0.00011812,2]
[323656230,1714149053938,-500.0,0.00011813,2]
[323656231,1714149053948,-500.0,0.00011813,2]
[323656232,1714149053957,-959.36,0.00011813,2]
[323656233,1714149053967,-500.0,0.00011813,2]
[323656234,1714149053976,-500.0,0.00011813,2]
[323656235,1714149053986,-500.0,0.00011813,2]
[323656236,1714149053995,-500.0,0.00011813,2]
[323656237,1714149054005,-500.0,0.00011813,2]
[323656238,1714149054014,-500.0,0.00011813,2]
[323656239,1714149054024,-500.0,0.00011813,2]
[323656240,1714149054033,-500.0,0.00011813,2]
[323656241,1714149054043,-500.0,0.00011813,2]
[323656242,1714149054052,-500.0,0.00011813,2]
[323656243,1714149054062,-500.0,0.00011813,2]
[323656244,1714149054071,-500.0,0.00011813,2]
[323656245,1714149054081,-500.0,0.00011813,2]
[323656246,1714149054091,-500.0,0.00011813,2]
[323656247,1714149054100,-500.0,0.00011813,2]
[323656248,1714149054110,-500.0,0.00011813,2]
[323656249,1714149054120,-500.0,0.00011813,2]
[323656250,1714149054129,-500.0,0.00011813,2]
[323656251,1714149054139,-798.65,0.00011813,2]
[323656252,1714149054148,-707.36,0.00011813,2]
[323656253,1714149054157,-500.0,0.00011813,2]
[323656254,1714149054167,-500.0,0.00011813,2]
[323656255,1714149054176,-500.0,0.00011813,2]
[323656256,1714149054186,-807.88,0.00011813,2]
[323656257,1714149054195,-500.0,0.00011813,2]
[323656258,1714149054205,-500.0,0.00011813,2]
[323656259,1714149054214,-500.0,0.00011813,2]
[323656260,1714149054224,-500.0,0.00011813,2]
[323656261,1714149054233,-500.0,0.00011813,2]
[323656262,1714149054242,-500.0,0.00011813,2]
[323656263,1714149054252,-500.0,0.00011813,2]
[323656264,1714149054261,-500.0,0.00011813,2]
[323656265,1714149054270,-824.86,0.00011813,2]
[323656266,1714149054279,-500.0,0.00011813,2]
[323656267,1714149054289,-750.16,0.00011813,2]
[323656268,1714149054300,-500.0,0.00011813,2]
[323656269,1714149054312,-557.29,0.00011813,2]
[323656270,1714149054321,-500.0,0.00011813,2]
[323656271,1714149054331,-500.0,0.00011813,2]
[323656272,1714149054342,-1368.69,0.00011813,2]
[323656273,1714149054351,-500.0,0.00011813,2]
[323656274,1714149054361,-500.0,0.00011813,2]
[323656275,1714149054371,-500.0,0.00011813,2]
[323656276,1714149054381,-500.0,0.00011813,2]
[323656277,1714149054391,-500.0,0.00011813,2]
[323656278,1714149054400,-866.63,0.00011813,2]
[323656279,1714149054410,-500.0,0.00011813,2]
[323656280,1714149054420,-1082.99,0.00011813,2]
[323656281,1714149054429,-1030.07,0.00011813,2]
[323656282,1714149054438,-500.0,0.00011813,2]
[323656283,1714149054448,-500.0,0.00011813,2]
[323656284,1714149054457,-302.95,0.00011813,2]
[323656285,1714149054467,-889.41,0.00011813,2]
[323656286,1714149054477,-1071.85,0.00011813,2]
[323656287,1714149054486,-765.24,0.00011813,2]
[323656288,1714149054496,-500.0,0.00011813,2]
[323656289,1714149054506,-500.0,0.00011813,2]
[323656290,1714149054516,-500.0,0.00011813,2]
[323656291,1714149054525,-1283.74,0.00011813,2]
[323656292,1714149054535,-923.6,0.00011813,2]
[323656293,1714149054544,-953.28,0.00011813,2]
[323656294,1714149054554,-500.0,0.00011813,2]
[323656295,1714149054563,-500.0,0.00011813,2]
[323656296,1714149054573,-2596.76,0.00011813,2]
[323656297,1714149054582,-1643.41,0.00011813,2]
[323656298,1714149054592,-706.77,0.00011813,2]
[323656299,1714149054602,-1136.67,0.00011813,2]
[323656300,1714149054611,-500.0,0.00011813,2]
[323656301,1714149054620,-178.49,0.00011813,2]
[323656302,1714149054631,-1697.83,0.00011813,2]
[323656303,1714149054640,-4232.01,0.00011813,2]
[323656304,1714149054649,-500.0,0.00011813,2]
[323656305,1714149054658,-1552.48,0.00011813,2]
[323656306,1714149054668,-500.0,0.00011813,2]
[323656307,1714149054677,-500.0,0.00011813,2]
[323656308,1714149054687,-1832.06,0.00011813,2]
[323656309,1714149054697,-500.0,0.00011813,2]
[323656310,1714149054706,-941.89,0.00011813,2]
[323656311,1714149054715,-500.0,0.00011813,2]
[323656312,1714149054724,-1065.66,0.00011813,2]
[323656313,1714149054734,-12005.8,0.00011813,2]
[323656314,1714149054744,-500.0,0.00011813,2]
[323656315,1714149054754,-500.0,0.00011813,2]
[323656316,1714149054763,-9202.72,0.00011813,2]
[323656317,1714149054772,-500.0,0.00011813,2]
[323656318,1714149054782,-500.0,0.00011813,2]
[323656319,1714149054791,-502.83,0.00011813,2]
[323656320,1714149054801,-1671.97,0.00011813,2]
[323656321,1714149054811,-500.0,0.00011813,2]
[323656322,1714149054821,-2361.08,0.00011813,2]
[323656323,1714149054830,-500.0,0.00011813,2]
[323656324,1714149054839,-7952.04,0.00011813,2]
[323656325,1714149054848,-222.8,0.00011813,2]
[323656326,1714149054857,-695.21,0.00011813,2]
[323656327,1714149054867,-1050.25,0.00011813,2]
[323656328,1714149054876,-500.0,0.00011813,2]
[323656329,1714149054885,-502.77,0.00011813,2]
[323656330,1714149054894,-500.0,0.00011813,2]
[323656331,1714149054903,-500.0,0.00011813,2]
[323656332,1714149054913,-500.0,0.00011813,2]
[323656333,1714149054922,-324.28945999,0.00011814,2]
[323656334,1714149054932,-500.0,0.00011814,2]
[323656335,1714149054942,-500.0,0.00011814,2]
[323656336,1714149054951,-500.0,0.00011814,2]
[323656337,1714149054961,-500.0,0.00011814,2]
[323656338,1714149054970,-500.0,0.00011814,2]
[323656339,1714149054979,-500.0,0.00011814,2]
[323656340,1714149054989,-500.0,0.00011814,2]
[323656341,1714149054999,-500.0,0.00011814,2]
[323656342,1714149055009,-500.0,0.00011814,2]
[323656343,1714149055018,-500.0,0.00011814,2]
[323656344,1714149055027,-516.01,0.00011814,2]
[323656345,1714149055037,-500.0,0.00011814,2]
[323656346,1714149055046,-500.0,0.00011814,2]
[323656347,1714149055057,-500.0,0.00011814,2]
[323656348,1714149055067,-500.0,0.00011814,2]
[323656349,1714149055078,-500.0,0.00011814,2]
[323656350,1714149055087,-621.65,0.00011814,2]
[323656351,1714149055097,-500.0,0.00011814,2]
[323656352,1714149055106,-500.0,0.00011814,2]
[323656353,1714149055117,-500.0,0.00011814,2]
[323656354,1714149055126,-500.0,0.00011814,2]
[323656355,1714149055136,-500.0,0.00011814,2]
[323656356,1714149055145,-500.0,0.00011814,2]
[323656357,1714149055155,-500.0,0.00011814,2]
[323656358,1714149055165,-500.0,0.00011814,2]
[323656359,1714149055175,-500.0,0.00011814,2]
[323656360,1714149055185,-500.0,0.00011814,2]
[323656361,1714149055195,-500.0,0.00011814,2]
[323656362,1714149055204,-500.0,0.00011814,2]
[323656363,1714149055213,-500.0,0.00011814,2]
[323656364,1714149055223,-500.0,0.00011814,2]
[323656365,1714149055232,-204.07649825,0.00011814,2]
[323656366,1714149055241,-500.0,0.00011814,2]
[323656367,1714149055251,-555.24,0.00011814,2]
[323656368,1714149055260,-500.0,0.00011814,2]
[323656369,1714149055269,-500.0,0.00011814,2]
[323656370,1714149055278,-500.0,0.00011814,2]
[323656371,1714149055288,-500.0,0.00011814,2]
[323656372,1714149055300,-500.0,0.00011814,2]
[323656373,1714149055312,-310.0,0.00011814,2]
[323656374,1714149055321,-500.0,0.00011814,2]
[323656375,1714149055330,-500.0,0.00011814,2]
[323656376,1714149055341,-500.0,0.00011814,2]
[323656377,1714149055351,-500.0,0.00011814,2]
[323656378,1714149055360,-500.0,0.00011814,2]
[323656379,1714149055371,-500.0,0.00011814,2]
[323656380,1714149055381,-539.46,0.00011814,2]
[323656381,1714149055390,-500.0,0.00011814,2]
[323656382,1714149055399,-500.0,0.00011814,2]
[323656383,1714149055408,-514.69,0.00011814,2]
[323656384,1714149055417,-500.0,0.00011814,2]
[323656385,1714149055427,-500.0,0.00011814,2]
[323656386,1714149055437,-500.0,0.00011814,2]
[323656387,1714149055446,-500.0,0.00011814,2]
[323656388,1714149055456,-500.0,0.00011814,2]
[323656389,1714149055465,-500.0,0.00011814,2]
[323656390,1714149055475,-396.56378482,0.00011814,2]
[323656391,1714149055484,-500.0,0.00011814,2]
[323656392,1714149055493,-500.0,0.00011814,2]
[323656393,1714149055503,-649.76124858,0.00011814,2]
[323656394,1714149055512,-500.0,0.00011814,2]
[323656395,1714149055521,-500.0,0.00011814,2]
[323656396,1714149055531,-330.45,0.00011814,2]
[323656397,1714149055540,-500.0,0.00011814,2]
[323656398,1714149055549,-500.0,0.00011814,2]
[323656399,1714149055559,-500.0,0.00011814,2]
[323656400,1714149055568,-500.0,0.00011814,2]
[323656401,1714149055578,-500.0,0.00011814,2]
[323656402,1714149055587,-340.55468915,0.00011814,2]
[323656403,1714149055597,-606.87,0.00011814,2]
[323656404,1714149055606,-500.0,0.00011814,2]
[323656405,1714149055615,-500.0,0.00011814,2]
[323656406,1714149055625,-500.0,0.00011814,2]
[323656407,1714149055634,-593.94,0.00011814,2]
[323656408,1714149055643,-500.0,0.00011814,2]
[323656409,1714149055653,-500.0,0.00011814,2]
[323656410,1714149055662,-500.0,0.00011814,2]
[323656411,1714149055671,-518.82,0.00011814,2]
[323656412,1714149055681,-500.0,0.00011814,2]
[323656413,1714149055691,-500.0,0.00011814,2]
[323656414,1714149055700,-500.0,0.00011814,2]
[323656415,1714149055710,-500.0,0.00011814,2]
[323656416,1714149055719,-500.0,0.00011814,2]
[323656417,1714149055729,-500.0,0.00011814,2]
[323656418,1714149055738,-488.23,0.00011814,2]
[323656419,1714149055749,-500.0,0.00011814,2]
[323656420,1714149055758,-500.0,0.00011814,2]
[323656421,1714149055767,-500.0,0.00011814,2]
[323656422,1714149055777,-500.0,0.00011814,2]
[323656423,1714149055786,-500.0,0.00011814,2]
[323656424,1714149055796,-500.0,0.00011814,2]
[323656425,1714149055805,-500.0,0.00011814,2]
[323656426,1714149055816,-500.0,0.00011814,2]
[323656427,1714149055825,-500.0,0.00011814,2]
[323656428,1714149055835,-500.0,0.00011814,2]
[323656429,1714149055844,-500.0,0.00011814,2]
[323656430,1714149055853,-557.56,0.00011814,2]
[323656431,1714149055862,-500.0,0.00011814,2]
[323656432,1714149055872,-500.0,0.00011814,2]
[323656433,1714149055881,-500.0,0.00011814,2]
[323656434,1714149055890,-500.0,0.00011814,2]
[323656435,1714149055900,-500.0,0.00011814,2]
[323656436,1714149055982,-500.0,0.00011814,2]
[323656437,1714149055992,-500.0,0.00011814,2]
[323656438,1714149056001,-500.0,0.00011814,2]
[323656439,1714149056011,-500.0,0.00011814,2]
[323656440,1714149056020,-500.0,0.00011814,2]
[323656441,1714149056030,-500.0,0.00011814,2]
[323656442,1714149056039,-500.0,0.00011814,2]
[323656443,1714149056049,-500.0,0.00011814,2]
[323656444,1714149056059,-6178.5,0.00011814,2]
[323656445,1714149056069,-780.26,0.00011814,2]
[323656446,1714149056078,-269.49,0.00011814,2]
[323656447,1714149056087,-500.0,0.00011814,2]
[323656448,1714149056097,-2459.65,0.00011814,2]
[323656449,1714149056106,-500.0,0.00011814,2]
[323656450,1714149056115,-500.0,0.00011814,2]
[323656451,1714149056125,-500.0,0.00011814,2]
[323656452,1714149056134,-483.91325975,0.00011814,2]
[323656453,1714149056143,-500.0,0.00011814,2]
[323656454,1714149056152,-500.0,0.00011814,2]
[323656455,1714149056161,-427.51,0.00011814,2]
[323656456,1714149056170,-2405.25,0.00011814,2]
[323656457,1714149056180,-500.0,0.00011814,2]
[323656458,1714149056189,-3836.22,0.00011814,2]
[323656459,1714149056198,-341.89,0.00011814,2]
[323656460,1714149056207,-500.0,0.00011814,2]
[323656461,1714149056216,-500.0,0.00011814,2]
[323656462,1714149056225,-500.0,0.00011814,2]
[323656463,1714149056234,-500.0,0.00011814,2]
[323656464,1714149056243,-2049.54,0.00011814,2]
[323656465,1714149056252,-500.0,0.00011814,2]
[323656466,1714149056261,-500.0,0.00011814,2]
[323656467,1714149056270,-500.0,0.00011814,2]
[323656468,1714149056279,-3945.37,0.00011814,2]
[323656469,1714149056289,-500.0,0.00011814,2]
[323656470,1714149056301,-2408.93,0.00011814,2]
[323656471,1714149056312,-299.99,0.00011814,2]
[323656472,1714149056321,-179.16,0.00011814,2]
[323656473,1714149056330,-2588.33,0.00011814,2]
[323656474,1714149056339,-500.0,0.00011814,2]
[323656475,1714149056350,-500.0,0.00011814,2]
[323656476,1714149056360,-500.0,0.00011814,2]
[323656477,1714149056369,-500.0,0.00011814,2]
[323656478,1714149056382,-500.0,0.00011814,2]
[323656479,1714149056392,-2855.65,0.00011814,2]
[323656480,1714149056401,-500.0,0.00011814,2]
[323656481,1714149056411,-465.34,0.00011814,2]
[323656482,1714149056420,-500.0,0.00011814,2]
[323656483,1714149056429,-5750.0,0.00011814,2]
[323656484,1714149056438,-213.89,0.00011814,2]
[323656485,1714149056447,-6585.94,0.00011814,2]
[323656486,1714149056457,-500.0,0.00011814,2]
[323656487,1714149056466,-2628.03,0.00011814,2]
[323656488,1714149056475,-500.0,0.00011814,2]
[323656489,1714149056484,-500.0,0.00011814,2]
[323656490,1714149056494,-500.0,0.00011814,2]
[323656491,1714149056503,-500.0,0.00011814,2]
[323656492,1714149056513,-500.0,0.00011814,2]
[323656493,1714149056522,-4598.48,0.00011814,2]
[323656494,1714149056531,-500.0,0.00011814,2]
[323656495,1714149056541,-2634.56,0.00011814,2]
[323656496,1714149056550,-6283.58,0.00011814,2]
[323656497,1714149056561,-500.0,0.00011814,2]
[323656498,1714149056570,-500.0,0.00011814,2]
[323656499,1714149056582,-500.0,0.00011814,2]
[323656500,1714149056591,-500.0,0.00011814,2]
[323656501,1714149056600,-500.0,0.00011814,2]
[323656502,1714149056609,-8055.65,0.00011814,2]
[323656503,1714149056618,-1633.49,0.00011814,2]
[323656504,1714149056628,-500.0,0.00011814,2]
[323656505,1714149056636,-500.0,0.00011814,2]
[323656506,1714149056646,-500.0,0.00011814,2]
[323656507,1714149056655,-500.0,0.00011814,2]
[323656508,1714149056664,-1923.8,0.00011814,2]
[323656509,1714149056673,-500.0,0.00011814,2]
[323656510,1714149056683,-550.72,0.00011814,2]
[323656511,1714149056692,-500.0,0.00011814,2]
[323656512,1714149056701,-500.0,0.00011814,2]
[323656513,1714149056710,-500.0,0.00011814,2]
[323656514,1714149056720,-500.0,0.00011814,2]
[323656515,1714149056730,-4065.88,0.00011814,2]
[323656516,1714149056739,-500.0,0.00011814,2]
[323656517,1714149056748,-500.0,0.00011814,2]
[323656518,1714149056756,-500.0,0.00011815,2]
[323656519,1714149056765,-500.0,0.00011815,2]
[323656520,1714149056774,-500.0,0.00011815,2]
[323656521,1714149056784,-500.0,0.00011815,2]
[323656522,1714149056792,-500.0,0.00011815,2]
[323656523,1714149056801,-500.0,0.00011815,2]
[323656524,1714149056811,-500.0,0.00011815,2]
[323656525,1714149056820,-500.0,0.00011815,2]
[323656526,1714149056830,-500.0,0.00011815,2]
[323656527,1714149056839,-646.26046106,0.00011815,2]
[323656528,1714149056848,-500.0,0.00011815,2]
[323656529,1714149056857,-500.0,0.00011815,2]
[323656530,1714149056867,-500.0,0.00011815,2]
[323656531,1714149056877,-500.0,0.00011815,2]
[323656532,1714149056886,-500.0,0.00011815,2]
[323656533,1714149056895,-500.0,0.00011815,2]
[323656534,1714149056904,-500.0,0.00011815,2]
[323656535,1714149056914,-500.0,0.00011815,2]
[323656536,1714149056923,-500.0,0.00011815,2]
[323656537,1714149056932,-500.0,0.00011815,2]
[323656538,1714149056941,-500.0,0.00011815,2]
[323656539,1714149056951,-500.0,0.00011815,2]
[323656540,1714149056960,-500.0,0.00011815,2]
[323656541,1714149056969,-500.0,0.00011815,2]
[323656542,1714149056978,-500.0,0.00011815,2]
[323656543,1714149056988,-500.0,0.00011815,2]
[323656544,1714149056997,-500.0,0.00011815,2]
[323656545,1714149057007,-500.0,0.00011815,2]
[323656546,1714149057017,-500.0,0.00011815,2]
[323656547,1714149057026,-500.0,0.00011815,2]
[323656548,1714149057036,-500.0,0.00011815,2]
[323656549,1714149057045,-500.0,0.00011815,2]
[323656550,1714149057054,-500.0,0.00011815,2]
[323656551,1714149057065,-528.55,0.00011815,2]
[323656552,1714149057074,-500.0,0.00011815,2]
[323656553,1714149057084,-500.0,0.00011815,2]
[323656554,1714149057093,-500.0,0.00011815,2]
[323656555,1714149057102,-500.0,0.00011815,2]
[323656556,1714149057111,-500.0,0.00011815,2]
[323656557,1714149057120,-500.0,0.00011815,2]
[323656558,1714149057129,-500.0,0.00011815,2]
[323656559,1714149057138,-500.0,0.00011815,2]
[323656560,1714149057148,-579.12,0.00011815,2]
[323656561,1714149057157,-500.0,0.00011815,2]
[323656562,1714149057166,-515.92,0.00011815,2]
[323656563,1714149057175,-500.0,0.00011815,2]
[323656564,1714149057184,-500.0,0.00011815,2]
[323656565,1714149057194,-535.2,0.00011815,2]
[323656566,1714149057202,-500.0,0.00011815,2]
[323656567,1714149057211,-500.0,0.00011815,2]
[323656568,1714149057220,-500.0,0.00011815,2]
[323656569,1714149057230,-500.0,0.00011815,2]
[323656570,1714149057239,-500.0,0.00011815,2]
[323656571,1714149057248,-500.0,0.00011815,2]
[323656572,1714149057257,-626.36,0.00011815,2]
[323656573,1714149057266,-638.34082056,0.00011815,2]
[323656574,1714149057275,-500.0,0.00011815,2]
[323656575,1714149057285,-500.0,0.00011815,2]
[323656576,1714149057300,-500.0,0.00011815,2]
[323656577,1714149057311,-500.0,0.00011815,2]
[323656578,1714149057320,-1407.85,0.00011815,2]
[323656579,1714149057330,-500.0,0.00011815,2]
[323656580,1714149057342,-500.0,0.00011815,2]